[Event "51st Rilton Cup 2023-24"]
[Site "Stockholm"]
[Date "2024.01.03"]
[Round "7.3"]
[White "Sokolovsky, Yahli"]
[Black "Socko, Bartosz"]
[Result "1/2-1/2"]
[ECO "C01"]
[WhiteElo "2443"]
[BlackElo "2550"]
[Annotator "TA"]
[PlyCount "110"]
[EventDate "2023.12.27"]
[EventType "swiss"]
[EventCountry "SWE"]
[SourceTitle "playchess.com"]
[Source "ChessBase"]
[SourceQuality "1"]
[TimeControl "40/5400+30:1800+30"]

{[%evp 17,110,0,2,0,-6,-8,0,0,0,0,0,0,7,-56,-50,-109,-64,-179,0,0,0,0,0,0,46,35,35,28,39,40,49,8,9,9,24,-8,0,0,0,0,0,0,0,0,0,0,0,0,0,0,0,0,0,0,0,0,0,0,0,0,0,0,0,0,0,0,0,0,0,0,0,0,0,0,0,0,0,0,0,0,0,0,0,0,0,0,0,0,0,0,0,0,0,0,0]} 1. e4 {[%emt 0:00:03]} e5 {[%emt 0:00:06]} 2. Nf3 {[%emt 0:00:05]} Nf6 {[%emt 0:00:06]} 3. Nxe5 {[%emt 0:00:29]} d6 {[%emt 0:00:09]} 4. Nf3 {[%emt 0:00:06]} Nxe4 {[%emt 0:00:06]} 5. d3 {[%emt 0:01:54]} Nf6 {[%emt 0:00:47]} 6. d4 {[%emt 0:00:04]} d5 {[%emt 0:02:53]} 7. Bd3 {[%emt 0:00:06]} Bd6 {[%emt 0:01:16]} 8. O-O {[%emt 0:00:17]} O-O {[%emt 0:00:05]} 9. h3 {[%emt 0:00:36]} Re8 {[%emt 0:02:45]} 10. c3 {[%emt 0:05:14] C01: French: Exchange Variation.} Nbd7 {[%emt 0:01:02]} 11. Bg5 {[%emt 0:09:11]} Nf8 {[%emt 0:03:59]} 12. Qc2 {[%emt 0:01:10]} h6 {[%emt 0:10:44]} 13. Bh4 {[%emt 0:00:18] [#]} g5 $146 {[%emt 0:02:20][%cal Bg7g5,Bg5g4][%mdl 32]} ({Predecessor:} 13... Ne6 14. Re1 Bd7 15. Nbd2 Nf4 16. Ne5 Nxd3 17. Qxd3 Be6 18. Re2 Be7 19. Qf3 Nh7 20. Bxe7 Qxe7 21. Rae1 Qd6 {1-0 Tkachiev,V (2642)-Ivanchuk,V (2739) Wch Blitz 4th 2009 (17)}) 14. Bg3 {[%emt 0:00:15]} g4 {[%emt 0:04:32]} (14... Ne4 {simplifies} 15. Bxd6 Nxd6 16. Nbd2 Qf6) 15. Ne5 {[%emt 0:16:06]} ({White should try} 15. hxg4 $1 $11 Bxg3 16. fxg3) 15... gxh3 $15 {[%emt 0:04:20] Threatens to win with ...Nh5.} 16. Qc1 {[%emt 0:03:32]} ({Better is} 16. Qd2 $15) 16... Ng4 {[%emt 0:14:17][%cal Rd6e5]} 17. f4 {[%emt 0:09:25]} (17. Re1 $1 $15 Qg5 18. Qxg5+ hxg5 19. Nd2) 17... f6 $2 {[%emt 0:18:44]} (17... hxg2 $19 18. Kxg2 f6 19. Nxg4 Bxg4) 18. gxh3 $11 {[%emt 0:02:32]} fxe5 {[%emt 0:01:22]} 19. fxe5 {[%emt 0:02:02]} (19. hxg4 $2 exd4 20. Qc2 Re3 $19) 19... Nxe5 {[%emt 0:02:43][%mdl 64] [#] Discovered Attack} 20. dxe5 {[%emt 0:01:49]} Bc5+ {[%emt 0:02:47]} (20... Bxe5 $11 21. Rxf8+ (21. Bxe5 Rxe5 22. Qxh6 Qg5+ 23. Qxg5+ Rxg5+ 24. Kh2 Kg7 $11) 21... Kxf8 22. Bxe5 (22. Qxh6+ $2 {is the wrong capture.} Bg7 $19) 22... Rxe5 23. Qf4+ (23. Qxh6+ $2 {loses.} Ke7 $19) 23... Bf5 {[%mdl 64] Decoy}) 21. Kh2 {[%emt 0:05:38]} Qg5 {[%emt 0:00:07]} 22. Qxg5+ {[%emt 0:17:38]} hxg5 {[%emt 0:00:23]} 23. Nd2 {[%emt 0:00:37]} Re6 {[%emt 0:02:30]} 24. Nf3 {[%emt 0:07:21]} (24. Nb3 {seems wilder.} Bb6 25. h4 Rh6 26. Rf6) 24... Rh6 {[%emt 0:01:09]} 25. h4 {[%emt 0:03:05]} Ne6 {[%emt 0:01:18]} 26. Bf5 {[%emt 0:05:18]} (26. Kg2 $5 {[%cal Rh4g5]}) 26... gxh4 {[%emt 0:01:32] The position is equal.} 27. Bf2 {[%emt 0:00:03]} Bxf2 {[%emt 0:05:45]} 28. Rxf2 {[%emt 0:00:06]} Ng7 {[%emt 0:00:10]} 29. Bxc8 {[%emt 0:00:39]} Rxc8 {[%emt 0:00:04]} 30. Rg1 {[%emt 0:02:33]} Rf8 {[%emt 0:05:50]} 31. Rfg2 {[%emt 0:00:07]} Rxf3 {[%emt 0:00:09]} 32. Rxg7+ {[%emt 0:00:03][%mdl 4096] Endgame KRR-KRR} Kf8 {[%emt 0:00:06]} 33. Rxc7 {[%emt 0:01:05]} Rf7 {[%emt 0:03:42]} 34. Rc8+ {[%emt 0:01:22]} Ke7 {[%emt 0:00:08]} 35. Rgg8 {[%emt 0:02:56] [#] And now Rc7+ would win.} Ke6 {[%emt 0:01:42]} 36. Rce8+ {[%emt 0:00:43]} Kd7 {[%emt 0:00:56]} 37. Rd8+ {[%emt 0:00:43]} Kc6 {[%emt 0:00:19]} 38. Rc8+ {[%emt 0:00:55]} Kb6 {[%emt 0:00:50]} 39. Rgd8 {[%emt 0:03:14]} h3 {[%emt 0:01:07]} 40. Rf8 {[%emt 0:00:28]} Rg7 {[%emt 0:05:07]} 41. Rg8 {[%emt 0:01:53] Prevents Rg2+.} Rg2+ {[%emt 0:18:32]} 42. Rxg2 {[%emt 0:00:21]} hxg2+ {[%emt 0:00:05]} 43. Kxg2 {[%emt 0:00:30] Kg3 would be deadly. KR-KR} Re6 {[%emt 0:00:10]} 44. Kf2 {[%emt 0:01:41]} Rxe5 {[%emt 0:00:18]} 45. Rf8 {[%emt 0:00:51]} a5 {[%emt 0:00:19]} 46. Rf3 {[%emt 0:04:59]} Kc5 {[%emt 0:00:06]} 47. Re3 {[%emt 0:01:23]} Rh5 {[%emt 0:00:15] White must now prevent ...Rh2+.} 48. Ke1 {[%emt 0:01:17]} a4 {[%emt 0:03:36]} 49. Kd2 {[%emt 0:00:52]} Kc4 {[%emt 0:00:53]} 50. Kc2 {[%emt 0:02:45]} Rh2+ {[%emt 0:00:10]} 51. Kb1 {[%emt 0:00:03]} b5 {[%emt 0:05:36]} 52. Rg3 {[%emt 0:00:20]} Rh1+ {[%emt 0:00:31]} 53. Kc2 {[%emt 0:00:05]} Rh2+ {[%emt 0:00:27]} 54. Kb1 {[%emt 0:00:04]} Rh1+ {[%emt 0:00:04]} 55. Kc2 {[%emt 0:00:06]} Rh2+ {[%emt 0:00:02] Weighted Error Value: White=0.11 (very precise) /Black=0.10 (very precise)} 1/2-1/2

[Event "51st Rilton Cup 2023-24"]
[Site "Stockholm"]
[Date "2024.01.03"]
[Round "7.4"]
[White "Malek, Jan"]
[Black "Prraneeth Vuppala"]
[Result "1/2-1/2"]
[ECO "D37"]
[WhiteElo "2434"]
[BlackElo "2515"]
[Annotator "TA"]
[PlyCount "101"]
[EventDate "2023.12.27"]
[EventType "swiss"]
[EventCountry "SWE"]
[SourceTitle "playchess.com"]
[Source "ChessBase"]
[SourceQuality "1"]
[TimeControl "40/5400+30:1800+30"]

{[%evp 9,101,24,23,11,69,24,65,88,82,77,91,65,70,66,75,38,63,69,42,18,19,20,45,34,43,35,43,44,44,38,46,36,27,25,0,0,7,-34,-45,-46,0,-72,0,-34,0,0,15,-71,-31,-148,-152,-152,0,0,0,0,362,372,723,298,277,235,269,254,289,183,170,171,364,373,375,367,367,377,362,363,322,319,404,381,402,407,392,381,495,208,197,206,191,193,197,199,193,192]} 1. d4 {[%emt 0:00:02]} d5 {[%emt 0:06:24]} 2. c4 {[%emt 0:00:07]} e6 {[%emt 0:00:33]} 3. Nc3 {[%emt 0:00:07]} h6 {[%emt 0:00:57]} 4. Nf3 {[%emt 0:01:21][%cal Bg1f3,Bf3d2,Bd2c4][%mdl 32]} Nf6 {[%emt 0:00:10]} 5. g3 {[%emt 0:00:07]} Bd6 {[%emt 0:00:28]} 6. a3 {[%emt 0:00:34] [#] D37: Queen's Gambit Declined: 5 Bf4.} dxc4 $146 {[%emt 0:01:09]} ({Better is} 6... O-O $11) ({Predecessor:} 6... O-O 7. g4 Ne4 8. Qc2 f5 9. gxf5 exf5 10. cxd5 Nd7 11. Rg1 Ndf6 12. Nxe4 fxe4 {0-1 Gukesh,D (2725)-Carlsen,M (2859) Speed Chess Chess.com INT blitz 2022 (1.29)}) 7. Nd2 {[%emt 0:03:37]} (7. e4 $5 {[%cal Re4e5]} Be7 8. Bxc4 $16) 7... Bd7 {[%emt 0:07:48]} 8. Nxc4 {[%emt 0:11:06] White is slightly better.} Bc6 {[%emt 0:00:58] Prevents Bg2} 9. f3 {[%emt 0:00:08]} Nd5 {[%emt 0:00:18]} 10. e4 {[%emt 0:08:12]} Nxc3 {[%emt 0:00:05]} 11. bxc3 {[%emt 0:00:05]} O-O {[%emt 0:00:05]} 12. Na5 {[%emt 0:07:29]} b6 {[%emt 0:06:36]} 13. Nxc6 {[%emt 0:01:13]} Nxc6 {[%emt 0:00:03]} 14. Bd3 {[%emt 0:13:00]} e5 {[%emt 0:00:11]} 15. Bb2 {[%emt 0:06:05]} Na5 {[%emt 0:00:58]} 16. O-O {[%emt 0:01:05]} c5 {[%emt 0:00:10]} 17. f4 {[%emt 0:11:56]} cxd4 {[%emt 0:03:51]} 18. cxd4 {[%emt 0:00:06]} exd4 {[%emt 0:00:38]} 19. e5 {[%emt 0:00:08]} (19. Bxd4 Bxf4 20. Ba6 Nb3 21. gxf4 (21. Bb7 Qxd4+ 22. Qxd4 Nxd4 $17) 21... Nxd4 $17) 19... Bc5 {[%emt 0:00:23]} 20. Qf3 $1 {[%emt 0:00:07][%mdl 1024] Dodges Qd5. White has compensation.} Qd7 {[%emt 0:07:51]} 21. Rae1 {[%emt 0:05:55]} (21. Qe4 {with more complications.} f5 22. exf6 gxf6 23. Qg6+) 21... Rae8 $1 {[%emt 0:06:13]} 22. Re2 {[%emt 0:00:07]} b5 {[%emt 0:07:20]} 23. f5 {[%emt 0:06:57]} Nc4 {[%emt 0:00:22]} 24. Rfe1 $1 {[%emt 0:00:16]} f6 {[%emt 0:17:43]} (24... Bxa3 $2 25. Bxa3 Nxa3 26. f6 $18) (24... Qc7 $1 $15 25. Qf4 f6) 25. e6 {[%emt 0:02:58]} (25. exf6 $1 $11 Nxb2 {[%mdl 64] Pin} 26. fxg7 Kxg7 27. Re6 Rxe6 28. Rxe6) 25... Qd6 {[%emt 0:00:09]} 26. Bc1 $1 {[%emt 0:01:04]} (26. e7 $2 Rf7 27. Kg2 Ne3+ 28. Rxe3 dxe3 $19) 26... Re7 {[%emt 0:02:40]} (26... Nxa3 27. e7 Rf7 28. Bxa3 Bxa3 29. Bxb5 Rexe7 30. Be8 $16 (30. Bc4 Kh7 $16)) 27. Bf4 {[%emt 0:01:45]} Qb6 {[%emt 0:00:29]} (27... Qa6 $5 {[%cal Ra6a3]}) 28. Re4 {[%emt 0:01:45]} (28. a4 $11) 28... Bd6 {[%emt 0:03:36]} (28... Ne3 $5 {[%cal Rb6a5]} 29. Bxe3 dxe3 $15) 29. Bxh6 {[%emt 0:04:57]} gxh6 $17 {[%emt 0:00:39]} 30. Rg4+ {[%emt 0:04:09][%cal Be4g4,Bg4g6,Bg6f6,Bf6f8,Bf8c8,Bc8c6][%mdl 32] [#]} Kh8 $2 {[%emt 0:00:50]} (30... Kh7 $1 $17 {...Ne5 is the strong threat.} 31. Rh4 Qa5) 31. Rg6 $11 {[%emt 0:00:07]} Rh7 {[%emt 0:04:28] aiming for ...Qa5.} (31... Nxa3 32. Rxh6+ Rh7 33. Qh5 Qb7 34. e7) 32. e7 $1 {[%emt 0:00:14]} Re8 {[%emt 0:16:06][%mdl 8192] White now steadily converts the win.} (32... Rxe7 33. Rxe7 Ne5 34. Rxh6+ Kg8 35. Rh8+ Kxh8 36. Qh5+ Kg8 37. Qh7#) (32... Bxe7 $11 {and Black stays safe.} 33. Rxe7 Rxe7 34. Rxh6+ Rh7 35. Rxh7+ Kxh7 36. Qh5+ Kg8 37. Bxc4+ bxc4 38. Qg6+ Kh8 39. Qh5+ Kg8 40. Qg6+ Kh8 41. Qh5+ Kg8) 33. Rxf6 $18 {[%emt 0:09:32] Qh5 would kill now.} Ne3 $2 {[%emt 0:00:49]} (33... Rexe7 34. Rf8+ Kg7 35. f6+ Kxf8 36. fxe7+ Ke8 37. Qf8+ Kd7 38. e8=Q+ Kc7 39. Qc8#) (33... Nxa3 34. Qh5 Qc6 35. Rxd6 Qa8 36. Rxh6) (33... Qb8 34. Qh5 Rexe7 35. Rxe7 Bxe7 36. Rxh6 Rxh6 37. Qxh6+ Kg8) 34. Qh5 {[%emt 0:00:01]} (34. Rc1 $142 {Qh5 would be deadly.} Qb8 35. Rc6) 34... Rexe7 {[%emt 0:02:49] And now ...Qc6 would win.} (34... Rhxe7 {gets mated.} 35. Rxh6+ Kg8 36. Rh8+ Kg7 37. Qh6+ Kf7 38. Qg6#) (34... Qc6 $2 35. Rxe3 dxe3 36. Rxd6 $18) 35. Rf8+ {[%emt 0:00:43]} (35. Rxh6 $2 {is the wrong capture.} Qc6 36. Bf1 Bxa3 37. Rxc6 Rxh5 $19) 35... Kg7 {[%emt 0:00:01]} 36. Rc8 $40 {[%emt 0:00:12][%csl Gd3,Gf5][%cal Rh5g6][%mdl 128] White attacks with force.} Bxa3 {[%emt 0:02:35] [#] Hoping for ...Rh8.} 37. Rxe3 $1 {[%emt 0:01:01][%mdl 576] Remove Defender} dxe3 {[%emt 0:01:24]} (37... Rxe3 $2 38. Qg4+ Kf6 39. Qg6+ Ke5 40. Rc6) 38. Qg4+ {[%emt 0:00:01]} Kf6 $2 {[%emt 0:00:55] [#]} (38... Kf7 39. Qg8+ Kf6 40. Rc6+ {[%mdl 64] Double Attack} Ke5 41. Rxb6 axb6) 39. Rc6+ $3 {[%emt 0:00:58][%mdl 512]} Qxc6 {[%emt 0:00:20]} 40. Qg6+ {[%emt 0:00:06][%mdl 64] Skewer} Ke5 {[%emt 0:00:03] ( -> ...Qc1+)} 41. Qxc6 {[%emt 0:30:07]} Kd4 {[%emt 0:08:22] Strongly threatening ...e2.} 42. Qxb5 {[%emt 0:00:00] Black must now prevent Qc4+.} ({Much less strong is} 42. Bxb5 Rc7 43. Qf6+ Kd5 $18) 42... Rc7 {[%emt 0:00:38] Repels Qc4+} 43. Be2 {[%emt 0:00:00]} Kc3 {[%emt 0:13:15]} 44. f6 {[%emt 0:00:00][%cal Bf5f6,Bf6f7][%mdl 32]} Bc5 {[%emt 0:03:10]} 45. Kg2 {[%emt 0:00:00]} Rhd7 {[%emt 0:01:27]} 46. g4 {[%emt 0:00:00]} Bd4 {[%emt 0:01:31]} 47. Qf5 {[%emt 0:00:00]} (47. g5 $142) 47... Kd2 {[%emt 0:01:16] White is clearly better.} 48. Qd3+ {[%emt 0:00:00]} Kc1 {[%emt 0:00:02] [#]} 49. f7 {[%emt 0:00:28][%mdl 512]} Bg7 {[%emt 0:00:05]} 50. Qxe3+ {[%emt 0:00:34]} Kb2 {[%emt 0:00:03]} 51. Qf4 {[%emt 0:01:49] A fantastic game!   Weighted Error Value: White=0.38/Black=0.39} 1/2-1/2

[Event "51st Rilton Cup 2023-24"]
[Site "Stockholm"]
[Date "2024.01.03"]
[Round "7.5"]
[White "Parkhov, Yair"]
[Black "Oratovsky, Michael"]
[Result "1-0"]
[ECO "C41"]
[WhiteElo "2495"]
[BlackElo "2421"]
[Annotator "TA"]
[PlyCount "87"]
[EventDate "2023.12.27"]
[EventType "swiss"]
[EventCountry "SWE"]
[SourceTitle "playchess.com"]
[Source "ChessBase"]
[SourceQuality "1"]
[TimeControl "40/5400+30:1800+30"]

{[%evp 9,87,25,24,19,22,20,32,28,38,-14,14,6,0,0,12,0,0,0,31,24,50,42,70,66,60,31,46,19,14,16,18,18,23,0,15,0,95,89,88,13,12,24,15,0,43,35,26,7,16,10,6,14,16,37,39,0,39,0,51,22,60,44,110,116,100,115,103,72,152,74,116,116,299,299,299,298,1516,854,29986,29987]} 1. d4 {[%emt 0:00:02]} d6 {[%emt 0:07:36]} 2. e4 {[%emt 0:00:06]} Nf6 {[%emt 0:00:30]} 3. Nc3 {[%emt 0:00:05]} e5 {[%emt 0:00:06]} 4. Nf3 {[%emt 0:00:03]} Nbd7 {[%emt 0:00:10]} 5. h3 {[%emt 0:00:04]} c6 {[%emt 0:20:55]} 6. a4 {[%emt 0:00:14] C41: Philidor Defence.} exd4 {[%emt 0:21:53]} 7. Qxd4 {[%emt 0:04:38] [#]} Be7 $146 {[%emt 0:12:59]} ({Predecessor:} 7... Nc5 8. Bc4 Be7 9. Be3 Qc7 10. O-O O-O 11. Rad1 Be6 12. Bxe6 fxe6 13. e5 Nd5 14. exd6 Bxd6 {1-0 Aplin,C (2042)-Salehian,S (1989) World ol U16 06th 2007 (10)}) 8. g4 {[%emt 0:14:18] White is slightly better.} O-O {[%emt 0:03:27][%cal Od6d5]} 9. g5 {[%emt 0:02:57]} ({Better is} 9. Be3 $14) 9... Nh5 {[%emt 0:03:07]} 10. Be3 {[%emt 0:01:57]} f6 {[%emt 0:12:48][%cal Rf6g5]} 11. g6 {[%emt 0:17:30]} hxg6 {[%emt 0:01:17]} 12. Rg1 {[%emt 0:04:08][%cal Of1e2]} Ne5 {[%emt 0:02:04]} 13. Be2 {[%emt 0:00:50]} Qe8 {[%emt 0:07:09]} (13... Qd7 $5 {[%cal Rd7h3]}) 14. O-O-O {[%emt 0:07:42][%mdl 1024] White has compensation.} g5 {[%emt 0:00:42] Against Nh4} 15. Qd2 {[%emt 0:03:03]} Kh8 {[%emt 0:02:40]} 16. Nd4 {[%emt 0:09:45]} Qf7 {[%emt 0:00:25]} (16... Bxh3 $2 17. Rh1 g4 18. f4 $18) 17. Rdf1 {[%emt 0:04:42]} (17. h4 $5 {[%cal Rh4g5]} Nf4 18. Bxf4 gxf4 19. Qxf4 $11) 17... g6 {[%emt 0:00:15] [#] Repels Nf5} ({Don't play} 17... Bxh3 18. Rh1 g4 19. Rfg1 $16) 18. h4 $1 {[%emt 0:08:35][%cal Rh4g5]} g4 {[%emt 0:00:35]} 19. f4 {[%emt 0:00:05]} gxf3 {[%emt 0:00:25]} 20. Nxf3 {[%emt 0:00:06]} Qh7 {[%emt 0:00:50]} 21. Bh6 {[%emt 0:02:38]} Rd8 {[%emt 0:00:22]} 22. Nd4 {[%emt 0:02:46]} Bf8 {[%emt 0:00:18]} (22... Rg8 $11) 23. Bxf8 $16 {[%emt 0:01:12]} Rxf8 {[%emt 0:00:01]} 24. Nf3 {[%emt 0:02:03]} (24. Bxh5 $16 {Hoping for Be2.} Qxh5 25. Nde2) 24... Bh3 $11 {[%emt 0:00:23]} 25. Rd1 {[%emt 0:00:27]} Rad8 {[%emt 0:01:17]} 26. Kb1 {[%emt 0:02:09]} Nf7 {[%emt 0:00:41]} 27. Qe3 {[%emt 0:02:13]} a6 {[%emt 0:00:21]} 28. Nd4 {[%emt 0:01:37]} Bc8 {[%emt 0:00:14]} 29. Rg2 {[%emt 0:00:58]} Ne5 {[%emt 0:00:25]} (29... Rde8 $5 {[%cal Rf7e5]}) 30. Rdg1 {[%emt 0:00:45]} Rg8 {[%emt 0:00:18]} 31. a5 {[%emt 0:01:29]} Rde8 {[%emt 0:00:45]} 32. Qf2 {[%emt 0:01:46] And now Bxh5 would win.} Ref8 {[%emt 0:00:22]} 33. Qe3 {[%emt 0:01:43]} Re8 {[%emt 0:00:06]} 34. Qd2 {[%emt 0:00:24]} Rd8 {[%emt 0:00:48]} 35. Na4 {[%emt 0:01:39]} d5 {[%emt 0:00:26]} (35... c5 $14 36. Nf3 Rge8) 36. exd5 $1 $16 {[%emt 0:00:06]} Rxd5 {[%emt 0:00:15] ...Rgd8 would be deadly.} 37. Nb6 {[%emt 0:00:12]} Rdd8 {[%emt 0:00:27]} 38. Qe3 {[%emt 0:03:04]} Rde8 {[%emt 0:00:26] [#]} (38... Bd7 $142) 39. Qf2 {[%emt 0:01:06] White is much more active.} ({White should play} 39. Nxc8 $1 Rxc8 40. Nf3) 39... Rgf8 {[%emt 0:00:44]} 40. Bxh5 {[%emt 0:00:36]} Qxh5 {[%emt 0:00:15] This costs Black the game.} (40... gxh5 $16 41. Nxc8 Rxc8) 41. Nxc8 $18 {[%emt 0:30:24]} Rxc8 {[%emt 0:03:03]} 42. Ne6 {[%emt 0:00:00] Dodges Rcd8. Threatens to win with Nf4.} Qf3 {[%emt 0:10:33]} (42... Rf7 $2 43. Nf4 Qh6 44. Nxg6+ Nxg6 45. Rxg6 $18) (42... Kh7 43. Nxf8+ Rxf8) 43. Nxf8 {[%emt 0:00:00]} Rxf8 {[%emt 0:00:05] [#]} 44. Rxg6 $1 {[%emt 0:00:00] Weighted Error Value: White=0.16 (very precise) /Black=0.33} 1-0

[Event "51st Rilton Cup 2023-24"]
[Site "Stockholm"]
[Date "2024.01.03"]
[Round "7.6"]
[White "Moksh Amit Doshi"]
[Black "Chasin, Nico"]
[Result "0-1"]
[ECO "D35"]
[WhiteElo "2366"]
[BlackElo "2444"]
[Annotator "RC"]
[PlyCount "68"]
[EventDate "2023.12.27"]
[EventType "swiss"]
[EventCountry "SWE"]
[SourceTitle "playchess.com"]
[Source "ChessBase"]
[SourceQuality "1"]
[TimeControl "40/5400+30:1800+30"]

1. d4 {[%emt 0:04:29]} Nf6 {[%emt 0:09:31]} 2. c4 {[%emt 0:00:15]} e6 {[%emt 0:00:20]} 3. Nf3 {[%emt 0:00:10]} d5 {[%emt 0:00:30]} 4. Nc3 {[%emt 0:00:11]} Nbd7 {[%emt 0:00:59]} 5. Bf4 {[%emt 0:00:18]} Bb4 {[%emt 0:00:37]} 6. cxd5 {[%emt 0:00:39]} exd5 {[%emt 0:00:20]} 7. e3 {[%emt 0:00:17]} Ne4 {[%emt 0:01:24]} 8. Qc2 {[%emt 0:00:14]} g5 {[%emt 0:01:00]} 9. Be5 {[%emt 0:00:09]} Nxe5 {[%emt 0:00:58]} 10. Nxe5 {[%emt 0:00:10]} c6 {[%emt 0:00:04]} 11. Bd3 {[%emt 0:02:05]} f6 {[%emt 0:02:49]} 12. Nf3 {[%emt 0:00:10]} Qe7 {[%emt 0:00:24]} 13. O-O {[%emt 0:02:40]} Bf5 {[%emt 0:04:14]} 14. Rfc1 {[%emt 0:01:31]} Bg6 {[%emt 0:05:47]} 15. a3 {[%emt 0:12:35]} Bd6 {[%emt 0:03:42]} 16. Bxe4 {[%emt 0:13:22]} dxe4 {[%emt 0:05:41]} 17. Nd2 {[%emt 0:00:15]} f5 {[%emt 0:04:06]} 18. Nc4 {[%emt 0:06:02]} Bc7 {[%emt 0:00:17]} 19. d5 {[%emt 0:02:30]} O-O {[%emt 0:01:48]} 20. Rd1 {[%emt 0:02:48]} Rf6 {[%emt 0:00:21]} 21. d6 {[%emt 0:13:12]} Bxd6 {[%emt 0:00:11]} 22. Nxd6 {[%emt 0:00:09]} Rxd6 {[%emt 0:00:04]} 23. Rxd6 {[%emt 0:00:10]} Qxd6 {[%emt 0:00:03]} 24. Qb3+ {[%emt 0:00:08]} Bf7 {[%emt 0:00:06]} 25. Qxb7 {[%emt 0:00:06]} Rb8 {[%emt 0:00:03]} 26. Qxa7 {[%emt 0:00:12]} Rxb2 {[%emt 0:00:03]} 27. Rd1 {[%emt 0:06:59]} Qe5 {[%emt 0:01:25]} 28. Qd7 {[%emt 0:03:40]} Kg7 {[%emt 0:03:49]} 29. Na4 {[%emt 0:02:51]} Rb3 {[%emt 0:02:02]} 30. Qxc6 {[%emt 0:03:36]} Rd3 {[%emt 0:13:47]} 31. Rc1 {[%emt 0:02:22]} f4 {[%emt 0:03:24]} 32. Nc5 {[%emt 0:05:21]} Rd6 {[%emt 0:07:36]} 33. Qb5 {[%emt 0:05:38]} Rd2 {[%emt 0:03:00]} 34. Qb4 {[%emt 0:02:38]} Rc2 {[%emt 0:00:02]} 0-1

[Event "51st Rilton Cup 2023-24"]
[Site "Stockholm"]
[Date "2024.01.03"]
[Round "7.7"]
[White "Bailet, Pierre"]
[Black "Aoshima, Mirai"]
[Result "1-0"]
[ECO "B62"]
[WhiteElo "2492"]
[BlackElo "2367"]
[Annotator "TA"]
[PlyCount "87"]
[EventDate "2023.12.27"]
[EventType "swiss"]
[EventCountry "SWE"]
[SourceTitle "playchess.com"]
[Source "ChessBase"]
[SourceQuality "1"]
[TimeControl "40/5400+30:1800+30"]

{[%evp 13,87,29,24,11,8,7,24,30,18,28,28,31,35,38,63,55,68,61,44,43,45,56,46,35,39,25,20,34,135,136,147,129,136,108,195,189,227,219,219,174,260,255,264,264,266,226,226,226,200,197,335,328,331,266,355,191,449,366,736,735,712,703,751,728,1625,1597,1509,389,1659,1374,4631,2649,7259,6293,2860,2627]} 1. e4 {[%emt 0:00:10]} c5 {[%emt 0:00:14]} 2. Nf3 {[%emt 0:00:47]} d6 {[%emt 0:00:15]} 3. d4 {[%emt 0:00:16]} cxd4 {[%emt 0:00:09]} 4. Nxd4 {[%emt 0:00:11]} Nf6 {[%emt 0:00:14]} 5. Nc3 {[%emt 0:00:13]} Nc6 {[%emt 0:00:23]} 6. Bg5 {[%emt 0:00:21]} e6 {[%emt 0:00:34]} 7. Bb5 {[%emt 0:00:52]} Bd7 {[%emt 0:03:32]} 8. Qd3 {[%emt 0:00:53] Nowadays more popular than 8.Bxc6. B62: Sicilian: Richter-Rauzer: 6...e6: Unusual White 7th moves.} Be7 {[%emt 0:09:00]} 9. O-O-O {[%emt 0:01:10]} h6 {[%emt 0:11:48]} 10. Bh4 {[%emt 0:02:23] White has an edge.} O-O {[%emt 0:00:33]} 11. Bxc6 {[%emt 0:01:27]} Bxc6 {[%emt 0:04:12]} 12. f4 {[%emt 0:10:06][%cal Bf2f4,Bf4f5][%mdl 32]} Rc8 {[%emt 0:13:51]} 13. f5 {[%emt 0:12:17] [#]} e5 $146 {[%emt 0:05:44]} ({Predecessor:} 13... Bd7 14. Rhg1 Ng4 15. Bxe7 Qxe7 16. Qg3 Ne5 17. Rdf1 Qg5+ 18. Qxg5 hxg5 19. Rd1 Nc4 {1-0 Sychev,K (2549)-Tan,J (2307) Titled Tuesday intern op 14th Feb Early blitz 2023 (2)}) 14. Bxf6 {[%emt 0:10:57]} Bxf6 {[%emt 0:00:20]} 15. Nxc6 {[%emt 0:05:01]} bxc6 {[%emt 0:00:44] Black is weak on the light squares} 16. Qxd6 {[%emt 0:02:19]} Qb6 {[%emt 0:06:13]} 17. Qd3 {[%emt 0:13:30]} Rfd8 {[%emt 0:02:11]} 18. Qc4 {[%emt 0:02:20]} Rd4 {[%emt 0:09:52]} 19. Rxd4 {[%emt 0:04:25]} exd4 {[%emt 0:00:09]} 20. Nd5 {[%emt 0:04:46]} cxd5 {[%emt 0:08:24] White leaves nothing to chance now.} ({Better is} 20... Bg5+ $14 21. Kb1 Qd8) 21. Qxc8+ $14 {[%emt 0:00:08][%mdl 4096] Endgame KQR-KQB} Kh7 {[%emt 0:00:03] [#] White must now prevent ...d3.} 22. e5 $1 {[%emt 0:03:05]} ({Much worse is} 22. exd5 $6 d3 23. Qc4 (23. cxd3 $2 {perishes.} Qxb2+ 24. Kd1 Bc3 $19) 23... Qxb2+ 24. Kd2 dxc2 25. Qxc2 Qd4+ 26. Qd3 Qf2+ 27. Kd1 Qxg2 $11) 22... Bxe5 {[%emt 0:00:03][%cal Od4d3] ...d3! would be deadly.} 23. f6 {[%emt 0:02:21] Hoping for Qf5+.} Qxf6 {[%emt 0:04:24] [#]} (23... g6 $16 {was called for.} 24. Qd7 Qxf6) 24. Qh3 $1 $18 {[%emt 0:00:42]} Bf4+ {[%emt 0:05:53]} 25. Kb1 {[%emt 0:00:41] And now Rf1 would win.} Be3 {[%emt 0:00:03]} 26. Qf3 {[%emt 0:02:46]} Qe6 {[%emt 0:01:26]} (26... Qxf3 {was worth a try.} 27. gxf3 Kg6) 27. Rf1 {[%emt 0:00:50]} Kg6 {[%emt 0:02:33]} 28. g4 {[%emt 0:02:52] Qf5+ is the strong threat.} f6 {[%emt 0:00:06]} 29. Qf5+ {[%emt 0:01:26]} Kf7 {[%emt 0:00:03]} 30. Qxe6+ {[%emt 0:06:02]} Kxe6 {[%emt 0:00:03] KR-KB} 31. a4 {[%emt 0:00:39]} Ke5 {[%emt 0:06:37]} (31... Kd6 $142 32. h4 Kc5) 32. b4 {[%emt 0:01:42]} Bd2 {[%emt 0:01:02]} 33. b5 {[%emt 0:00:37]} Bb4 {[%emt 0:01:26]} 34. Kc1 {[%emt 0:00:53]} (34. Rf2 $142) 34... g6 $2 {[%emt 0:04:36]} (34... Ke4 35. Rf5 Be1) 35. Kd1 {[%emt 0:00:53]} f5 $2 {[%emt 0:00:11]} (35... d3 36. cxd3 Bc3) 36. gxf5 {[%emt 0:00:12]} gxf5 {[%emt 0:00:02]} 37. Rg1 {[%emt 0:01:35]} f4 {[%emt 0:01:33]} 38. Rg7 {[%emt 0:01:04]} f3 {[%emt 0:00:33]} 39. Rxa7 {[%emt 0:01:12]} Ke4 {[%emt 0:00:22]} 40. Rf7 $2 {[%emt 0:02:36]} (40. b6 Ke3 41. Rg7) 40... Ba5 $2 {[%emt 0:00:29]} (40... Ke3 41. b6 f2) 41. Rf6 {[%emt 0:31:19] White is clearly winning.} h5 {[%emt 0:01:13]} 42. b6 {[%emt 0:00:00][%cal Bb5b6,Bb6b7][%mdl 32]} Ke3 {[%emt 0:00:50]} 43. b7 {[%emt 0:00:00]} Bc7 {[%emt 0:00:06]} 44. Ke1 {[%emt 0:00:00] Weighted Error Value: White=0.29 (precise) /Black=0.37} 1-0